[Event "2. Itzehoer Schach Open"]
[Site "Itzehoe, Germany"]
[Date "2023.04.30"]
[Round "4.11"]
[White "Liu, Jan Luca"]
[Black "Knuedel, Torben"]
[Result "0-1"]
[TimeControl "90 min / 40 Züge + 30 min + 30 Sek pro Zug"]
[WhiteElo "1073"]
[BlackElo "2250"]

1. e4 {[%clk 01:30:59]} c5 {[%clk 01:26:59]} {[%emt 00:03:57]} 2. Nf3 {[%clk
01:31:25]} {[%emt 00:00:07]} d6 {[%clk 01:27:05]} {[%emt 00:00:25]} 3. Nc3
{[%clk 01:31:16]} {[%emt 00:00:38]} a6 {[%clk 01:27:26]} {[%emt 00:00:10]} 4.
d4 {[%clk 01:31:22]} {[%emt 00:00:24]} cxd4 {[%clk 01:27:51]} {[%emt 00:00:05]}
5. Nxd4 {[%clk 01:31:42]} {[%emt 00:00:10]} Nf6 {[%clk 01:28:17]} {[%emt
00:00:04]} 6. g3 {[%clk 01:30:14]} {[%emt 00:01:58]} e5 {[%clk 01:27:51]}
{[%emt 00:00:56]} 7. Nde2 {[%clk 01:28:56]} {[%emt 00:01:47]} Nc6 {[%clk
01:27:25]} {[%emt 00:00:55]} 8. Bg5 {[%clk 01:27:47]} {[%emt 00:01:40]} Be6
{[%clk 01:23:18]} {[%emt 00:04:37]} 9. f4 {[%clk 01:26:56]} {[%emt 00:01:22]}
Be7 {[%clk 01:20:48]} {[%emt 00:03:00]} 10. Qd2 {[%emt 00:09:58]} O-O {[%clk
01:18:06]} {[%emt 00:00:01]} 11. O-O-O {[%clk 01:20:34]} {[%emt 00:00:34]} Qa5
{[%clk 01:09:46]} {[%emt 00:08:52]} 12. Bxf6 {[%clk 01:19:02]} {[%emt
00:02:00]} Bxf6 {[%clk 01:10:04]} {[%emt 00:00:12]} 13. a3 {[%clk 01:18:46]}
{[%emt 00:00:47]} Rac8 {[%clk 01:06:43]} {[%emt 00:03:51]} 14. Nd5 {[%clk
01:14:28]} {[%emt 00:04:47]} Bxd5 {[%clk 01:05:16]} {[%emt 00:01:58]} 15. exd5
{[%clk 01:13:19]} {[%emt 00:01:38]} Qxd2+ {[%clk 01:05:38]} {[%emt 00:00:08]}
16. Rxd2 {[%clk 01:13:39]} {[%emt 00:00:09]} Na5 {[%clk 01:06:03]} {[%emt
00:00:06]} 17. fxe5 {[%clk 01:09:11]} {[%emt 00:04:59]} Bg5 {[%clk 01:06:17]}
{[%emt 00:00:15]} 18. Nf4 {[%clk 01:09:29]} {[%emt 00:00:12]} Nb3+ {[%clk
01:06:22]} {[%emt 00:00:25]} 19. Kd1 {[%clk 01:09:16]} {[%emt 00:00:43]} Nxd2
{[%clk 01:04:39]} {[%emt 00:02:14]} 20. Kxd2 {[%clk 01:09:35]} {[%emt
00:00:11]} dxe5 {[%clk 01:05:03]} {[%emt 00:00:05]} 21. h4 {[%clk 01:09:57]}
{[%emt 00:00:09]} Bh6 {[%clk 01:05:29]} {[%emt 00:00:04]} 22. Bh3 {[%clk
01:09:57]} {[%emt 00:00:30]} Rcd8 {[%clk 01:05:53]} {[%emt 00:00:06]} 23. Kc3
{[%clk 01:10:07]} {[%emt 00:00:20]} exf4 {[%clk 01:06:18]} {[%emt 00:00:05]} 24.
gxf4 {[%clk 01:10:14]} {[%emt 00:00:23]} Bxf4 {[%clk 01:06:41]} {[%emt
00:00:07]} 25. Bf5 {[%clk 01:10:17]} {[%emt 00:00:27]} Rxd5 {[%clk 01:07:05]}
{[%emt 00:00:05]} 26. Be4 {[%clk 01:10:30]} {[%emt 00:00:18]} Rd7 {[%clk
01:06:58]} {[%emt 00:00:36]} 27. Rf1 {[%clk 01:10:29]} {[%emt 00:00:30]} Be5+
{[%clk 01:07:18]} {[%emt 00:00:11]} 28. Kc4 {[%clk 01:10:51]} {[%emt 00:00:08]}
Rd4+ {[%clk 01:07:41]} {[%emt 00:00:06]} 29. Kb3 {[%clk 01:11:07]} {[%emt
00:00:16]} Rxe4 {[%clk 01:08:00]} {[%emt 00:00:11]} 30. h5 {[%clk 01:11:22]}
{[%emt 00:00:14]} f5 {[%clk 01:08:25]} {[%emt 00:00:05]} 31. h6 {[%clk
01:11:30]} {[%emt 00:00:22]} g6 {[%clk 01:08:48]} {[%emt 00:00:07]} 32. Rf3
{[%clk 01:11:45]} {[%emt 00:00:15]} f4 {[%clk 01:09:13]} {[%emt 00:00:06]} 33.
c3 {[%clk 01:12:08]} {[%emt 00:00:06]} Re3 {[%clk 01:09:40]} {[%emt 00:00:04]}
34. Rf2 {[%clk 01:12:23]} {[%emt 00:00:04]} f3 {[%clk 01:10:06]} {[%emt
00:00:15]} 35. Rf1 {[%clk 01:12:17]} {[%emt 00:00:35]} f2 {[%clk 01:10:31]}
{[%emt 00:00:06]} 36. Kc2 {[%clk 01:12:41]} {[%emt 00:00:06]} Re1 {[%clk
01:10:57]} {[%emt 00:00:03]} 37. Rxe1 {[%clk 01:12:34]} {[%emt 00:00:37]}
fxe1=Q {[%clk 01:11:16]} {[%emt 00:00:08]} 38. Kb3 {[%clk 01:13:00]} {[%emt
00:00:08]} Qd1+ {[%clk 01:11:41]} {[%emt 00:00:04]} 39. Ka2 {[%clk 01:13:26]}
{[%emt 00:00:05]} Qd5+ {[%clk 01:12:06]} {[%emt 00:00:04]} 40. Kb1 {[%clk
01:13:45]} {[%emt 00:00:12]} Rf1+ {[%clk 01:12:32]} {[%emt 00:00:03]} 41. Kc2
{[%clk 01:12:53]} {[%emt 00:01:23]} Qd1# {[%clk 01:11:00]} {[%emt 00:00:18]}
0-1

[Event "2. Itzehoer Schach Open"]
[Site "Itzehoe, Germany"]
[Date "2023.04.30"]
[Round "4.3"]
[White "Trapp, Hannes"]
[Black "Nahnsen, Kenneth"]
[Result "1-0"]
[TimeControl "90 min / 40 Züge + 30 min + 30 Sek pro Zug"]
[WhiteElo "1677"]
[BlackElo "2021"]

1. e4 {[%clk 01:30:48]} {[%emt 00:00:11]} c5 {[%clk 01:30:19]} {[%emt
00:00:41]} 2. Nf3 {[%clk 01:31:10]} {[%emt 00:00:07]} d6 {[%clk 01:30:43]}
{[%emt 00:00:07]} 3. d4 {[%clk 01:31:32]} {[%emt 00:00:08]} cxd4 {[%clk
01:31:09]} {[%emt 00:00:04]} 4. Nxd4 {[%clk 01:31:57]} {[%emt 00:00:05]} Nf6
{[%clk 01:31:36]} {[%emt 00:00:03]} 5. Nc3 {[%clk 01:32:01]} {[%emt 00:00:26]}
g6 {[%clk 01:31:59]} {[%emt 00:00:07]} 6. Bc4 {[%clk 01:31:29]} {[%emt
00:01:01]} Bg7 {[%clk 01:32:23]} {[%emt 00:00:07]} 7. f3 {[%clk 01:30:58]}
{[%emt 00:01:01]} O-O {[%clk 01:32:47]} {[%emt 00:00:05]} 8. Be3 {[%clk
01:31:20]} {[%emt 00:00:09]} Nc6 {[%clk 01:33:00]} {[%emt 00:00:18]} 9. Qd2
{[%clk 01:30:20]} {[%emt 00:01:28]} Bd7 {[%clk 01:33:26]} {[%emt 00:00:05]} 10.
Nce2 {[%clk 01:29:49]} {[%emt 00:01:01]} Ne5 {[%clk 01:32:32]} {[%emt
00:01:24]} 11. Bb3 {[%clk 01:28:49]} {[%emt 00:01:29]} b5 {[%clk 01:32:03]}
{[%emt 00:01:00]} 12. Bh6 {[%clk 01:28:30]} {[%emt 00:00:49]} a5 {[%clk
01:29:45]} {[%emt 00:02:48]} 13. a3 {[%clk 01:27:54]} {[%emt 00:01:05]} b4
{[%clk 01:27:43]} {[%emt 00:02:32]} 14. Bxg7 {[%clk 01:25:57]} {[%emt
00:02:27]} Kxg7 {[%clk 01:28:07]} {[%emt 00:00:05]} 15. axb4 {[%clk 01:25:04]}
{[%emt 00:01:23]} axb4 {[%clk 01:28:23]} {[%emt 00:00:15]} 16. O-O {[%clk
01:25:06]} {[%emt 00:00:27]} Qb6 {[%clk 01:28:49]} {[%emt 00:00:04]} 17. Kh1
{[%clk 01:25:13]} {[%emt 00:00:23]} Nc6 {[%clk 01:27:28]} {[%emt 00:01:52]} 18.
Nxc6 {[%clk 01:23:47]} {[%emt 00:01:56]} Bxc6 {[%clk 01:27:51]} {[%emt
00:00:06]} 19. Ng3 {[%clk 01:23:47]} {[%emt 00:00:31]} h6 {[%clk 01:26:29]}
{[%emt 00:01:53]} 20. h3 {[%clk 01:20:07]} {[%emt 00:04:09]} Rfd8 {[%clk
01:26:10]} {[%emt 00:00:49]} 21. Rxa8 {[%clk 01:18:51]} {[%emt 00:01:46]} Rxa8
{[%clk 01:26:38]} {[%emt 00:00:02]} 22. Rd1 {[%clk 01:19:03]} {[%emt 00:00:18]}
Qc5 {[%clk 01:25:51]} {[%emt 00:01:18]} 23. Qd4 {[%clk 01:16:59]} {[%emt
00:02:34]} Ra1 {[%clk 01:25:54]} {[%emt 00:00:26]} 24. Qxc5 {[%clk 01:16:35]}
{[%emt 00:00:55]} Rxd1+ {[%clk 01:26:09]} {[%emt 00:00:14]} 25. Qg1 {[%clk
01:17:01]} {[%emt 00:00:05]} Rxg1+ {[%clk 01:26:31]} {[%emt 00:00:08]} 26. Kxg1
{[%clk 01:17:26]} {[%emt 00:00:05]} Nd7 {[%clk 01:26:47]} {[%emt 00:00:14]} 27.
Ne2 {[%clk 01:17:33]} {[%emt 00:00:23]} Nc5 {[%clk 01:26:59]} {[%emt 00:00:19]}
28. Nc1 {[%clk 01:16:58]} {[%emt 00:01:04]} Bb5 {[%clk 01:26:16]} {[%emt
00:01:13]} 29. Kf2 {[%clk 01:16:12]} {[%emt 00:01:16]} Kf6 {[%clk 01:26:40]}
{[%emt 00:00:06]} 30. Ke3 {[%clk 01:16:21]} {[%emt 00:00:21]} e5 {[%clk
01:25:18]} {[%emt 00:01:53]} 31. Bd5 {[%clk 01:16:30]} {[%emt 00:00:22]} Ke7
{[%clk 01:24:39]} {[%emt 00:01:09]} 32. Na2 {[%clk 01:16:52]} {[%emt 00:00:08]}
Na6 {[%clk 01:25:03]} {[%emt 00:00:05]} 33. h4 {[%clk 01:15:47]} {[%emt
00:01:35]} f5 {[%clk 01:25:24]} {[%emt 00:00:10]} 34. g3 {[%clk 01:15:15]}
{[%emt 00:01:01]} Kf6 {[%clk 01:24:28]} {[%emt 00:01:27]} 35. Bb7 {[%clk
01:15:18]} {[%emt 00:00:27]} Nc5 {[%clk 01:24:51]} {[%emt 00:00:06]} 36. Bc8
{[%clk 01:15:28]} {[%emt 00:00:20]} b3 {[%clk 01:24:31]} {[%emt 00:00:50]} 37.
cxb3 {[%clk 01:15:36]} {[%emt 00:00:23]} Nxb3 {[%clk 01:24:54]} {[%emt
00:00:07]} 38. Nc3 {[%clk 01:15:39]} {[%emt 00:00:26]} Bc6 {[%clk 01:25:17]}
{[%emt 00:00:07]} 39. g4 {[%clk 01:14:08]} {[%emt 00:02:01]} fxg4 {[%clk
01:24:08]} {[%emt 00:01:40]} 40. fxg4 {[%clk 01:12:28]} {[%emt 00:02:11]} g5
{[%clk 01:23:15]} {[%emt 00:01:22]} 41. h5 {[%clk 01:12:21]} {[%emt 00:00:36]}
Ke7 {[%clk 01:22:12]} {[%emt 00:01:34]} 42. Ne2 {[%clk 01:11:33]} {[%emt
00:01:18]} Kd8 {[%clk 01:21:39]} {[%emt 00:01:03]} 43. Be6 {[%clk 01:11:21]}
{[%emt 00:00:42]} Nc5 {[%clk 01:22:02]} {[%emt 00:00:07]} 44. Bd5 {[%clk
01:11:44]} {[%emt 00:00:07]} Bd7 {[%clk 01:22:04]} {[%emt 00:00:29]} 45. Kf3
{[%clk 01:11:46]} {[%emt 00:00:27]} Ba4 {[%clk 01:21:24]} {[%emt 00:01:10]} 46.
Nc3 {[%clk 01:09:03]} {[%emt 00:03:13]} Bd7 {[%clk 01:13:11]} {[%emt 00:08:43]}
47. Ne2 {[%clk 01:08:15]} {[%emt 00:01:17]} Nd3 {[%clk 01:10:51]} {[%emt
00:02:52]} 48. b3 {[%clk 01:08:17]} {[%emt 00:00:28]} Ne1+ {[%clk 01:10:26]}
{[%emt 00:00:54]} 49. Kg3 {[%clk 01:06:35]} {[%emt 00:02:12]} Nc2 {[%clk
01:10:50]} {[%emt 00:00:06]} 50. Kf3 {[%clk 01:06:30]} {[%emt 00:00:35]} Nd4+
{[%clk 01:07:16]} {[%emt 00:04:04]} 51. Nxd4 {[%clk 01:06:52]} {[%emt
00:00:07]} exd4 {[%clk 01:07:45]} {[%emt 00:00:02]} 52. Bc4 {[%clk 01:06:21]}
{[%emt 00:01:01]} Kc7 {[%clk 01:07:48]} {[%emt 00:00:27]} 53. Bd3 {[%clk
01:05:46]} {[%emt 00:01:04]} Kb6 {[%clk 01:08:12]} {[%emt 00:00:06]} 54. b4
{[%clk 01:05:08]} {[%emt 00:01:09]} Ba4 {[%clk 01:06:16]} {[%emt 00:02:26]} 55.
Ke2 {[%clk 01:04:43]} {[%emt 00:00:55]} Bb3 {[%clk 01:06:34]} {[%emt 00:00:11]}
56. Kd2 {[%clk 01:04:51]} {[%emt 00:00:23]} Ba2 {[%clk 00:58:32]} {[%emt
00:08:33]} 57. Kc2 {[%clk 01:04:03]} {[%emt 00:01:17]} Kc6 {[%clk 00:56:22]}
{[%emt 00:02:40]} 58. Be2 {[%clk 01:04:09]} {[%emt 00:00:24]} d5 {[%clk
00:55:06]} {[%emt 00:01:46]} 59. e5 {[%clk 01:02:56]} {[%emt 00:01:42]} Bc4
{[%clk 00:55:14]} {[%emt 00:00:22]} 60. Bd3 {[%clk 01:02:53]} {[%emt 00:00:32]}
Kd7 {[%clk 00:52:49]} {[%emt 00:02:56]} 61. b5 {[%clk 01:02:13]} {[%emt
00:01:10]} 1-0

[Event "2. Itzehoer Schach Open"]
[Site "Itzehoe, Germany"]
[Date "2023.04.30"]
[Round "4.15"]
[White "Wolf, Finn"]
[Black "Schacht, David"]
[Result "1/2-1/2"]
[TimeControl "90 min / 40 Züge + 30 min + 30 Sek pro Zug"]
[WhiteElo "1677"]
[BlackElo "1541"]

1. e4 {[%clk 01:30:57]} {[%emt 00:00:02]} e5 {[%clk 01:30:57]} {[%emt
00:00:04]} 2. Nf3 {[%clk 01:31:22]} {[%emt 00:00:05]} Nc6 {[%clk 01:31:23]}
{[%emt 00:00:04]} 3. Bb5 {[%clk 01:31:47]} {[%emt 00:00:05]} Nge7 {[%clk
01:31:49]} {[%emt 00:00:05]} 4. c3 {[%clk 01:31:32]} {[%emt 00:00:45]} g6
{[%clk 01:27:41]} {[%emt 00:04:36]} 5. d4 {[%clk 01:29:35]} {[%emt 00:02:28]}
Bg7 {[%clk 01:27:21]} {[%emt 00:00:50]} 6. Be3 {[%clk 01:23:05]} {[%emt
00:07:00]} O-O {[%clk 01:26:02]} {[%emt 00:01:49]} 7. O-O {[%clk 01:21:20]}
{[%emt 00:02:14]} d5 {[%clk 01:24:30]} {[%emt 00:02:03]} 8. exd5 {[%clk
01:10:31]} {[%emt 00:11:19]} Nxd5 {[%clk 01:18:39]} {[%emt 00:06:20]} 9. Bxc6
{[%clk 01:00:13]} {[%emt 00:10:49]} Nxe3 {[%clk 01:13:35]} {[%emt 00:05:34]} 10.
fxe3 {[%clk 00:58:46]} {[%emt 00:01:58]} bxc6 {[%clk 01:11:50]} {[%emt
00:02:14]} 11. h3 {[%clk 00:55:24]} {[%emt 00:03:52]} e4 {[%clk 01:04:21]}
{[%emt 00:07:59]} 12. Nfd2 {[%clk 00:55:26]} {[%emt 00:00:28]} Qg5 {[%clk
01:01:39]} {[%emt 00:03:12]} 13. Nxe4 {[%clk 00:53:26]} {[%emt 00:02:30]} Qxe3+
{[%clk 00:57:53]} {[%emt 00:04:16]} 14. Nf2 {[%clk 00:53:46]} {[%emt 00:00:09]}
Re8 {[%clk 00:56:01]} {[%emt 00:02:22]} 15. Nd2 {[%clk 00:52:28]} {[%emt
00:01:48]} Qe2 {[%clk 00:52:30]} {[%emt 00:04:02]} 16. Re1 {[%clk 00:52:15]}
{[%emt 00:00:42]} Qxd1 {[%clk 00:52:54]} {[%emt 00:00:07]} 17. Raxd1 {[%clk
00:52:38]} {[%emt 00:00:06]} Be6 {[%clk 00:52:12]} {[%emt 00:01:12]} 18. Nfe4
{[%clk 00:49:45]} {[%emt 00:03:24]} Bd5 {[%clk 00:47:16]} {[%emt 00:05:24]} 19.
Nc5 {[%clk 00:48:11]} {[%emt 00:02:07]} Bh6 {[%clk 00:43:52]} {[%emt 00:03:53]}
20. Nde4 {[%clk 00:36:57]} {[%emt 00:11:44]} Bg7 {[%clk 00:42:09]} {[%emt
00:02:12]} 1/2-1/2

[Event "2. Itzehoer Schach Open"]
[Site "Itzehoe, Germany"]
[Date "2023.04.30"]
[Round "4.10"]
[White "Neuendorf, Max"]
[Black "Oortmann, Alexis"]
[Result "1/2-1/2"]
[TimeControl "90 min / 40 Züge + 30 min + 30 Sek pro Zug"]
[WhiteElo "2000"]
[BlackElo "1095"]

1. e4 {[%clk 01:30:28]} {[%emt 00:00:31]} c5 {[%clk 01:29:26]} {[%emt
00:01:35]} 2. c3 {[%clk 01:30:01]} {[%emt 00:00:58]} Nf6 {[%clk 01:29:34]}
{[%emt 00:00:22]} 3. e5 {[%clk 01:30:19]} {[%emt 00:00:12]} Nd5 {[%clk
01:29:55]} {[%emt 00:00:08]} 4. d4 {[%clk 01:30:42]} {[%emt 00:00:07]} d6
{[%clk 01:30:07]} {[%emt 00:00:17]} 5. Nf3 {[%clk 01:11:10]} {[%emt 00:20:04]}
cxd4 {[%clk 01:30:28]} {[%emt 00:00:09]} 6. cxd4 {[%clk 01:09:34]} {[%emt
00:02:05]} Nc6 {[%clk 01:30:38]} {[%emt 00:00:20]} 7. Bc4 {[%clk 01:09:27]}
{[%emt 00:00:37]} Nb6 {[%clk 01:31:01]} {[%emt 00:00:08]} 8. Bb5 {[%clk
01:09:47]} {[%emt 00:00:09]} e6 {[%clk 01:29:54]} {[%emt 00:01:37]} 9. O-O
{[%clk 01:03:41]} {[%emt 00:06:35]} Bd7 {[%clk 01:28:52]} {[%emt 00:01:33]} 10.
Nc3 {[%clk 00:57:27]} {[%emt 00:06:44]} Be7 {[%clk 01:27:28]} {[%emt 00:01:54]}
11. Qe2 {[%clk 00:52:16]} {[%emt 00:05:40]} Nb4 {[%clk 01:21:07]} {[%emt
00:06:51]} 12. a3 {[%clk 00:48:13]} {[%emt 00:04:33]} Bxb5 {[%clk 01:20:25]}
{[%emt 00:01:13]} 13. Nxb5 {[%clk 00:44:47]} {[%emt 00:03:55]} N4d5 {[%clk
01:18:06]} {[%emt 00:02:49]} 14. Bd2 {[%clk 00:36:27]} {[%emt 00:08:49]} a6
{[%clk 01:18:25]} {[%emt 00:00:13]} 1/2-1/2

[Event "2. Itzehoer Schach Open"]
[Site "Itzehoe, Germany"]
[Date "2023.04.30"]
[Round "4.5"]
[White "Tarasenko, Nazar"]
[Black "Pitic, Jasmin"]
[Result "0-1"]
[TimeControl "90 min / 40 Züge + 30 min + 30 Sek pro Zug"]
[WhiteElo "1970"]
[BlackElo "2067"]

1. d4 {[%clk 01:30:52]} {[%emt 00:00:07]} d5 {[%clk 01:30:37]} {[%emt
00:00:23]} 2. c4 {[%clk 01:31:19]} {[%emt 00:00:04]} e6 {[%clk 01:31:04]}
{[%emt 00:00:03]} 3. Nc3 {[%clk 01:31:45]} {[%emt 00:00:03]} Be7 {[%clk
01:31:17]} {[%emt 00:00:17]} 4. cxd5 {[%clk 01:31:54]} {[%emt 00:00:21]} exd5
{[%clk 01:31:42]} {[%emt 00:00:05]} 5. Qc2 {[%clk 01:32:02]} {[%emt 00:00:23]}
c6 {[%clk 01:31:47]} {[%emt 00:00:25]} 6. Bf4 {[%clk 01:31:23]} {[%emt
00:01:07]} Nf6 {[%clk 01:31:53]} {[%emt 00:00:25]} 7. h3 {[%clk 01:31:42]}
{[%emt 00:00:10]} O-O {[%clk 01:30:35]} {[%emt 00:01:50]} 8. e3 {[%clk
01:32:04]} {[%emt 00:00:07]} Bd6 {[%clk 01:29:29]} {[%emt 00:01:37]} 9. Bxd6
{[%clk 01:32:11]} {[%emt 00:00:23]} Qxd6 {[%clk 01:29:57]} 10. Bd3 {[%clk
01:32:14]} {[%emt 00:00:26]} Re8 {[%clk 01:29:42]} {[%emt 00:00:46]} 11. Nf3
{[%clk 01:32:30]} {[%emt 00:00:13]} Nbd7 {[%clk 01:29:49]} {[%emt 00:00:23]} 12.
O-O {[%clk 01:32:46]} {[%emt 00:00:14]} Nf8 {[%clk 01:29:47]} {[%emt 00:00:32]}
13. Ne5 {[%clk 01:31:19]} {[%emt 00:01:57]} N6d7 {[%clk 01:28:33]} {[%emt
00:01:44]} 14. Nf3 {[%clk 01:29:59]} {[%emt 00:01:51]} Nf6 {[%clk 01:28:35]}
{[%emt 00:00:28]} 15. Rfb1 {[%clk 01:30:03]} {[%emt 00:00:25]} a5 {[%clk
01:26:12]} {[%emt 00:02:53]} 16. Qa4 {[%clk 01:29:14]} {[%emt 00:01:20]} Bd7
{[%clk 01:20:03]} {[%emt 00:06:39]} 17. Qc2 {[%clk 01:29:22]} {[%emt 00:00:21]}
Ne6 {[%clk 01:15:53]} {[%emt 00:04:40]} 18. Re1 {[%clk 01:24:11]} {[%emt
00:05:41]} g6 {[%clk 01:15:32]} {[%emt 00:00:51]} 19. Rad1 {[%clk 01:21:06]}
{[%emt 00:03:36]} Ng7 {[%clk 01:14:49]} {[%emt 00:01:12]} 20. g4 {[%clk
01:19:38]} {[%emt 00:01:57]} h5 {[%clk 01:12:20]} {[%emt 00:02:59]} 21. g5
{[%clk 01:19:57]} {[%emt 00:00:12]} Nh7 {[%clk 01:12:12]} {[%emt 00:00:39]} 22.
h4 {[%clk 01:18:57]} {[%emt 00:01:29]} Qe6 {[%clk 01:10:14]} {[%emt 00:02:28]}
23. Ne5 {[%clk 01:16:06]} {[%emt 00:03:21]} Qh3 {[%clk 01:07:12]} {[%emt
00:03:32]} 24. f4 {[%clk 01:15:51]} {[%emt 00:00:45]} Qxh4 {[%clk 01:05:35]}
{[%emt 00:02:07]} 25. Re2 {[%clk 01:15:26]} {[%emt 00:00:51]} Rxe5 {[%clk
00:51:12]} {[%emt 00:14:57]} 26. dxe5 {[%clk 01:15:14]} {[%emt 00:00:41]} Bg4
{[%clk 00:49:59]} {[%emt 00:01:44]} 27. Rf1 {[%clk 01:10:24]} {[%emt 00:05:19]}
Qg3+ {[%clk 00:46:21]} {[%emt 00:04:09]} 28. Kh1 {[%clk 01:10:29]} {[%emt
00:00:24]} Bf3+ {[%clk 00:45:32]} {[%emt 00:01:21]} 29. Rxf3 {[%clk 01:10:27]}
{[%emt 00:00:30]} Qxf3+ {[%clk 00:46:01]} {[%emt 00:00:02]} 30. Kh2 {[%clk
01:09:42]} {[%emt 00:01:14]} d4 {[%clk 00:42:51]} {[%emt 00:03:41]} 31. Rf2
{[%clk 01:09:41]} {[%emt 00:00:31]} Qxe3 {[%clk 00:40:45]} {[%emt 00:02:37]} 32.
Nd1 {[%clk 01:08:19]} {[%emt 00:01:50]} Qe1 {[%clk 00:40:29]} {[%emt 00:00:47]}
33. a4 {[%clk 01:08:20]} {[%emt 00:00:30]} Nf8 {[%clk 00:37:50]} {[%emt
00:03:09]} 34. Kg2 {[%clk 01:07:43]} {[%emt 00:01:07]} Nfe6 {[%clk 00:37:07]}
{[%emt 00:01:13]} 35. f5 {[%clk 01:07:43]} {[%emt 00:00:30]} gxf5 {[%clk
00:36:51]} {[%emt 00:00:46]} 36. Bxf5 {[%clk 01:08:03]} {[%emt 00:00:10]} Qxe5
{[%clk 00:36:35]} {[%emt 00:00:46]} 37. Bxe6 {[%clk 01:05:45]} {[%emt
00:02:48]} Qxe6 {[%clk 00:35:18]} {[%emt 00:01:46]} 38. Qd3 {[%clk 01:05:32]}
{[%emt 00:00:43]} Qg4+ {[%clk 00:34:13]} {[%emt 00:01:35]} 39. Kf1 {[%clk
01:05:27]} {[%emt 00:00:30]} Re8 {[%clk 00:33:16]} {[%emt 00:01:32]} 40. Qb3
{[%clk 01:05:06]} {[%emt 00:00:51]} Re6 {[%clk 00:30:13]} {[%emt 00:03:33]} 41.
Qd3 {[%clk 01:03:54]} {[%emt 00:01:42]} c5 {[%clk 00:28:13]} {[%emt 00:02:30]}
42. Qb3 {[%clk 01:03:39]} {[%emt 00:00:44]} Nf5 {[%clk 00:25:21]} {[%emt
00:03:22]} 43. Rg2 {[%clk 01:03:43]} {[%emt 00:00:27]} Qf4+ {[%clk 00:24:33]}
{[%emt 00:01:18]} 44. Rf2 {[%clk 01:03:40]} {[%emt 00:00:33]} Qe4 {[%clk
00:24:49]} {[%emt 00:00:14]} 0-1